fUST/lending_fUST_20250727
["ID","MTS","AMOUNT","RATE_DAILY","PERIOD"]
[375203001,1753584226924,5000.0,0.0001801,2]
[375203003,1753584239058,327.39964716,0.00017535,2]
[375203004,1753584244078,3478.17534708,0.0001801,2]
[375203005,1753584244101,1521.82465292,0.0001801,2]
[375203006,1753584259480,5000.0,0.0001801,2]
[375203007,1753584274835,5000.0,0.0001801,2]
[375203008,1753584290805,5000.0,0.0001801,2]
[375203009,1753584306148,5000.0,0.0001801,2]
[375203010,1753584322945,5000.0,0.0001801,2]
[375203011,1753584338900,5000.0,0.0001801,2]
[375203012,1753584355049,5000.0,0.0001801,2]
[375203013,1753584371863,3478.17534708,0.0001801,2]
[375203014,1753584371887,1521.82465292,0.0001801,2]
[375203015,1753584388071,5000.0,0.0001801,2]
[375203016,1753584395791,156.4720611,0.00017977,2]
[375203017,1753584403767,5000.0,0.0001801,2]
[375203018,1753584418832,1100.97121001,0.0001801,2]
[375203019,1753584451093,-215.41042809,0.00018013,2]
[375203020,1753584451113,-1056.56852625,0.00018077,2]
[375203021,1753584451867,152.56018302,0.00017932,2]
[375203031,1753584596239,179.95233406,0.00017977,2]
[375203169,1753584638363,-300.0,0.00018076,2]
[375203170,1753584638373,-300.0,0.00018076,2]
[375203171,1753584638383,-300.0,0.00018076,2]
[375203172,1753584638392,-300.0,0.00018076,2]
[375203173,1753584638401,-121.006188,0.00018076,2]
[375203174,1753584638413,-1078.993812,0.00018076,2]
[375203175,1753584638422,-208.41686081,0.00018076,2]
[375203176,1753584638432,-1537.28779627,0.00018077,2]
[375203177,1753584638441,-1805.3079686,0.00018077,2]
[375203178,1753584638453,-963.85330514,0.00018077,2]
[375203179,1753584638464,-1281.878382,0.00018077,2]
[375203180,1753584638475,-6896.67748928,0.00018077,2]
[375203183,1753584638487,-13952.28285498,0.00018077,2]
[375203185,1753584638497,-182.278529,0.00018113,2]
[375203187,1753584638506,-5966.70047766,0.00018333,2]
[375203188,1753584638515,-288.36162339,0.00018333,2]
[375203189,1753584638525,-163.69982358,0.00018403,2]
[375203190,1753584638534,-982.36488692,0.000189,2]
[375203191,1753584638543,-3699.02174737,0.000189,2]
[375203192,1753584638552,-222.91959194,0.000189,2]
[375203193,1753584638561,-151.3367311,0.00018967,2]
[375203194,1753584638573,-1200.0,0.00018967,2]
[375203195,1753584638582,-407.57,0.00018968,3]
[375203196,1753584638592,-203.79,0.00018968,3]
[375203197,1753584638601,-611.38,0.00018968,3]
[375203198,1753584638611,-500.0,0.00018973,2]
[375203199,1753584638621,-500.0,0.00018973,2]
[375203201,1753584638631,-500.0,0.00018973,2]
[375203203,1753584638640,-500.0,0.00018973,2]
[375203205,1753584638650,-500.0,0.00018973,2]
[375203207,1753584638659,-500.0,0.00018973,2]
[375203209,1753584638669,-500.0,0.00018973,2]
[375203210,1753584638679,-6501.58051445,0.00018975,2]
[375203212,1753584638688,-500.0,0.00018977,2]
[375203213,1753584638698,-506.76652412,0.00018977,2]
[375203214,1753584638707,-500.0,0.00018977,2]
[375203216,1753584638717,-500.0,0.00018977,2]
[375203218,1753584638726,-294.37143655,0.00018977,2]
[375203220,1753584638735,-500.0,0.00018977,2]
[375203225,1753584638864,-500.0,0.00018977,2]
[375203226,1753584638874,-500.0,0.00018977,2]
[375203227,1753584638883,-500.0,0.00018977,2]
[375203228,1753584638892,-500.0,0.00018977,2]
[375203229,1753584638903,-156879.75577514,0.00018978,2]
[375203230,1753584638912,-293.86884939,0.00019078,2]
[375203231,1753584638921,-17892.03774226,0.00019078,2]
[375203232,1753584638930,-3699.02174736,0.00019141,2]
[375203233,1753584638939,-246.74498087,0.00019154,2]
[375203234,1753584638948,-501.7841692,0.00019173,2]
[375203235,1753584638957,-606.18652128,0.00019173,2]
[375203236,1753584638966,-500.0,0.00019173,2]
[375203237,1753584638975,-501.93264794,0.00019173,2]
[375203238,1753584638985,-500.0,0.00019173,2]
[375203239,1753584638995,-501.51984201,0.00019173,2]
[375203240,1753584639004,-502.12609357,0.00019173,2]
[375203241,1753584639013,-501.23195132,0.00019173,2]
[375203242,1753584639023,-501.6689213,0.00019173,2]
[375203243,1753584639032,-501.55042914,0.00019173,2]
[375203244,1753584639042,-500.0,0.00019173,2]
[375203245,1753584639051,-500.0,0.00019173,2]
[375203246,1753584639060,-352.09949821,0.00019173,2]
[375203247,1753584639071,-500.0,0.00019173,2]
[375203248,1753584639080,-500.0,0.00019173,2]
[375203249,1753584639089,-500.0,0.00019173,2]
[375203250,1753584639098,-501.41280616,0.00019173,2]
[375203251,1753584639108,-500.0,0.00019173,2]
[375203252,1753584639117,-500.0,0.00019173,2]
[375203253,1753584639128,-500.0,0.00019173,2]
[375203254,1753584639138,-500.0,0.00019173,2]
[375203255,1753584639147,-500.0,0.00019173,2]
[375203256,1753584639156,-460.0,0.00019178,2]
[375203257,1753584639165,-369.82504348,0.00019178,2]
[375203258,1753584639175,-461.81453874,0.00019178,2]
[375203259,1753584639185,-460.56798748,0.00019178,2]
[375203260,1753584639194,-460.0,0.00019178,2]
[375203261,1753584639204,-461.61202923,0.00019178,2]
[375203262,1753584639213,-460.0,0.00019178,2]
[375203263,1753584639224,-460.69864325,0.00019178,2]
[375203264,1753584639235,-461.50815763,0.00019178,2]
[375203265,1753584639245,-461.55120227,0.00019178,2]
[375203266,1753584639255,-460.0,0.00019178,2]
[375203267,1753584639266,-460.0,0.00019178,2]
[375203268,1753584639278,-461.67261205,0.00019178,2]
[375203269,1753584639287,-460.0,0.00019178,2]
[375203270,1753584639306,-460.0,0.00019178,2]
[375203271,1753584639320,-460.0,0.00019178,2]
[375203272,1753584639331,-460.0,0.00019178,2]
[375203273,1753584639342,-522.79675387,0.00019178,2]
[375203274,1753584639354,-460.0,0.00019178,2]
[375203275,1753584639364,-460.0,0.00019178,2]
[375203276,1753584639376,-460.0,0.00019178,2]
[375203277,1753584639386,-465.25085172,0.00019178,2]
[375203278,1753584639397,-460.0,0.00019178,2]
[375203279,1753584639409,-461.52934225,0.00019178,2]
[375203280,1753584639420,-460.0,0.00019178,2]
[375203281,1753584639430,-460.0,0.00019178,2]
[375203282,1753584639441,-460.0,0.00019178,2]
[375203283,1753584639451,-464.96346792,0.00019178,2]
[375203284,1753584639462,-461.62499839,0.00019178,2]
[375203285,1753584639472,-460.0,0.00019178,2]
[375203286,1753584639482,-460.0,0.00019178,2]
[375203287,1753584639492,-460.0,0.00019178,2]
[375203288,1753584639502,-460.0,0.00019178,2]
[375203289,1753584639513,-460.0,0.00019178,2]
[375203290,1753584639523,-460.0,0.00019178,2]
[375203291,1753584639533,-461.82782824,0.00019178,2]
[375203292,1753584639544,-460.0,0.00019178,2]
[375203293,1753584639555,-461.65954056,0.00019178,2]
[375203294,1753584639566,-460.0,0.00019178,2]
[375203295,1753584639579,-465.1061167,0.00019178,2]
[375203296,1753584639589,-460.0,0.00019178,2]
[375203297,1753584639600,-460.0,0.00019178,2]
[375203298,1753584639611,-460.0,0.00019178,2]
[375203299,1753584639622,-460.0,0.00019178,2]
[375203300,1753584639632,-460.0,0.00019178,2]
[375203301,1753584639643,-460.0,0.00019178,2]
[375203302,1753584639653,-460.0,0.00019178,2]
[375203303,1753584639664,-469.12471505,0.00019178,2]
[375203304,1753584639674,-460.0,0.00019178,2]
[375203305,1753584639685,-460.0,0.00019178,2]
[375203306,1753584639696,-460.0,0.00019178,2]
[375203307,1753584639706,-460.0,0.00019178,2]
[375203308,1753584639716,-460.0,0.00019178,2]
[375203309,1753584639726,-460.0,0.00019178,2]
[375203310,1753584639736,-460.0,0.00019178,2]
[375203311,1753584639746,-460.0,0.00019178,2]
[375203312,1753584639756,-460.0,0.00019178,2]
[375203313,1753584639768,-500.0,0.00019178,2]
[375203316,1753584639779,-460.0,0.00019178,2]
[375203317,1753584639791,-460.0,0.00019178,2]
[375203318,1753584639801,-460.0,0.00019178,2]
[375203319,1753584639812,-460.0,0.00019178,2]
[375203320,1753584639823,-460.0,0.00019178,2]
[375203322,1753584639834,-462.48736629,0.00019178,2]
[375203323,1753584639845,-460.0,0.00019178,2]
[375203324,1753584639855,-461.51893012,0.00019178,2]
[375203325,1753584639866,-467.88677979,0.00019178,2]
[375203326,1753584639877,-460.0,0.00019178,2]
[375203328,1753584639887,-460.0,0.00019178,2]
[375203329,1753584639896,-461.04722834,0.00019178,2]
[375203330,1753584639907,-460.0,0.00019178,2]
[375203331,1753584639916,-227.99103924,0.00019178,2]
[375203332,1753584639926,-214.32001865,0.00019178,2]
[375203333,1753584639935,-460.0,0.00019178,2]
[375203334,1753584639945,-460.0,0.00019178,2]
[375203335,1753584639954,-460.37105725,0.00019178,2]
[375203336,1753584639964,-460.0,0.00019178,2]
[375203338,1753584639976,-460.0,0.00019178,2]
[375203340,1753584639986,-460.0,0.00019178,2]
[375203342,1753584639995,-460.0,0.00019178,2]
[375203344,1753584640005,-460.0,0.00019178,2]
[375203346,1753584640018,-460.0,0.00019178,2]
[375203347,1753584640027,-460.30775853,0.00019178,2]
[375203348,1753584640037,-352.79934772,0.00019178,2]
[375203349,1753584640047,-460.0,0.00019178,2]
[375203350,1753584640056,-460.0,0.00019178,2]
[375203351,1753584640066,-460.0,0.00019178,2]
[375203352,1753584640075,-460.0,0.00019178,2]
[375203353,1753584640085,-460.0,0.00019178,2]
[375203354,1753584640094,-460.0,0.00019178,2]
[375203355,1753584640104,-460.0,0.00019178,2]
[375203356,1753584640114,-460.0,0.00019178,2]
[375203357,1753584640123,-465.91592337,0.00019178,2]
[375203359,1753584640132,-460.0,0.00019178,2]
[375203360,1753584640141,-460.0,0.00019178,2]
[375203363,1753584640151,-460.0,0.00019178,2]
[375203365,1753584640161,-500.0,0.00019178,2]
[375203367,1753584640170,-506.9761207,0.00019178,2]
[375203369,1753584640179,-505.65478194,0.00019178,2]
[375203371,1753584640189,-460.0,0.00019178,2]
[375203373,1753584640198,-460.0,0.00019178,2]
[375203374,1753584640207,-457.63999651,0.00019178,2]
[375203376,1753584640217,-460.0,0.00019178,2]
[375203378,1753584640226,-460.0,0.00019178,2]
[375203380,1753584640235,-460.0,0.00019178,2]
[375203382,1753584640245,-460.0,0.00019178,2]
[375203384,1753584640255,-460.0,0.00019178,2]
[375203386,1753584640265,-2270.75,0.00019178,2]
[375203388,1753584640275,-460.0,0.00019178,2]
[375203390,1753584640285,-460.0,0.00019178,2]
[375203392,1753584640294,-460.0,0.00019178,2]
[375203394,1753584640304,-460.0,0.00019178,2]
[375203396,1753584640313,-460.0,0.00019178,2]
[375203398,1753584640323,-460.0,0.00019178,2]
[375203400,1753584640333,-461.21965808,0.00019178,2]
[375203403,1753584640344,-460.0,0.00019178,2]
[375203405,1753584640356,-460.0,0.00019178,2]
[375203407,1753584640371,-460.0,0.00019178,2]
[375203409,1753584640381,-460.0,0.00019178,2]
[375203411,1753584640391,-460.0,0.00019178,2]
[375203413,1753584640402,-460.0,0.00019178,2]
[375203415,1753584640412,-461.33501283,0.00019178,2]
[375203417,1753584640423,-460.0,0.00019178,2]
[375203419,1753584640434,-460.68061804,0.00019178,2]
[375203421,1753584640444,-460.0,0.00019178,2]
[375203423,1753584640454,-460.0,0.00019178,2]
[375203425,1753584640465,-460.0,0.00019178,2]
[375203427,1753584640475,-464.13049068,0.00019178,2]
[375203429,1753584640485,-460.0,0.00019178,2]
[375203431,1753584640495,-460.86535373,0.00019178,2]
[375203433,1753584640505,-460.0,0.00019178,2]
[375203435,1753584640515,-460.0,0.00019178,2]
[375203437,1753584640525,-460.0,0.00019178,2]
[375203439,1753584640535,-475.71354801,0.00019178,2]
[375203441,1753584640545,-460.0,0.00019178,2]
[375203443,1753584640554,-460.0,0.00019178,2]
[375203445,1753584640564,-460.0,0.00019178,2]
[375203447,1753584640577,-460.0,0.00019178,2]
[375203449,1753584640587,-460.0,0.00019178,2]
[375203451,1753584640597,-544.18,0.00019178,2]
[375203453,1753584640608,-465.11457066,0.00019178,2]
[375203455,1753584640617,-460.0,0.00019178,2]
[375203457,1753584640627,-460.0,0.00019178,2]
[375203458,1753584640636,-460.94889963,0.00019178,2]
[375203460,1753584640646,-460.0,0.00019178,2]
[375203461,1753584640657,-460.0,0.00019178,2]
[375203462,1753584640667,-460.0,0.00019178,2]
[375203463,1753584640678,-460.0,0.00019178,2]
[375203464,1753584640689,-460.0,0.00019178,2]
[375203465,1753584640698,-466.43264799,0.00019178,2]
[375203466,1753584640708,-464.90998407,0.00019178,2]
[375203467,1753584640719,-1567.62,0.00019178,2]
[375203468,1753584640728,-460.0,0.00019178,2]
[375203469,1753584640738,-460.0,0.00019178,2]
[375203470,1753584640748,-460.0,0.00019178,2]
[375203471,1753584640759,-462.00117944,0.00019178,2]
[375203472,1753584640768,-460.0,0.00019178,2]
[375203474,1753584640778,-460.0,0.00019178,2]
[375203476,1753584640787,-460.0,0.00019178,2]
[375203478,1753584640796,-515.73272796,0.00019178,2]
[375203479,1753584640806,-460.0,0.00019178,2]
[375203481,1753584640816,-460.0,0.00019178,2]
[375203482,1753584640827,-460.0,0.00019178,2]
[375203483,1753584640837,-460.0,0.00019178,2]
[375203484,1753584640847,-464.36443734,0.00019178,2]
[375203485,1753584640856,-460.0,0.00019178,2]
[375203486,1753584640866,-460.0,0.00019178,2]
[375203487,1753584640876,-484.59,0.00019178,2]
[375203488,1753584640885,-294.82569263,0.00019178,2]
[375203489,1753584640895,-461.89048762,0.00019178,2]
[375203490,1753584640905,-460.0,0.00019178,2]
[375203491,1753584640915,-460.0,0.00019178,2]
[375203492,1753584640924,-460.0,0.00019178,2]
[375203493,1753584640934,-460.0,0.00019178,2]
[375203494,1753584640944,-460.91373367,0.00019178,2]
[375203495,1753584640954,-192.46889105,0.00019178,2]
[375203496,1753584640964,-460.0,0.00019178,2]
[375203497,1753584640974,-460.6349406,0.00019178,2]
[375203498,1753584640983,-460.0,0.00019178,2]
[375203499,1753584640993,-460.0,0.00019178,2]
[375203500,1753584641004,-460.0,0.00019178,2]
[375203501,1753584641014,-460.58397263,0.00019178,2]
[375203502,1753584641024,-460.0,0.00019178,2]
[375203503,1753584641034,-219.04160023,0.00019178,2]
[375203504,1753584641043,-460.0,0.00019178,2]
[375203505,1753584641053,-460.0,0.00019178,2]
[375203506,1753584641062,-462.88585897,0.00019178,2]
[375203507,1753584641072,-460.0,0.00019178,2]
[375203508,1753584641082,-460.0,0.00019178,2]
[375203509,1753584641092,-460.0,0.00019178,2]
[375203510,1753584641102,-460.0,0.00019178,2]
[375203511,1753584641112,-460.0,0.00019178,2]
[375203512,1753584641121,-460.0,0.00019178,2]
[375203513,1753584641131,-460.0,0.00019178,2]
[375203514,1753584641141,-460.0,0.00019178,2]
[375203515,1753584641151,-460.0,0.00019178,2]
[375203516,1753584641160,-460.0,0.00019178,2]
[375203517,1753584641170,-460.0,0.00019178,2]
[375203518,1753584641179,-461.02272826,0.00019178,2]
[375203519,1753584641189,-733.17,0.00019178,2]
[375203520,1753584641198,-460.0,0.00019178,2]
[375203521,1753584641208,-460.0,0.00019178,2]
[375203522,1753584641219,-354.62691593,0.00019178,2]
[375203523,1753584641228,-460.0,0.00019178,2]
[375203524,1753584641237,-460.0,0.00019178,2]
[375203525,1753584641247,-460.0,0.00019178,2]
[375203526,1753584641257,-460.0,0.00019178,2]
[375203527,1753584641266,-460.0,0.00019178,2]
[375203528,1753584641276,-460.0,0.00019178,2]
[375203529,1753584641286,-460.0,0.00019178,2]
[375203530,1753584641296,-460.0,0.00019178,2]
[375203531,1753584641307,-460.0,0.00019178,2]
[375203532,1753584641316,-769.79,0.00019178,2]
[375203533,1753584641434,-460.0,0.00019178,2]
[375203534,1753584641455,-460.0,0.00019178,2]
[375203535,1753584641464,-460.0,0.00019178,2]
[375203536,1753584641474,-460.0,0.00019178,2]
[375203537,1753584641483,-461.79091912,0.00019178,2]
[375203538,1753584641494,-460.0,0.00019178,2]
[375203539,1753584641505,-628.61,0.00019178,2]
[375203540,1753584641514,-460.0,0.00019178,2]
[375203541,1753584641524,-460.0,0.00019178,2]
[375203542,1753584641534,-460.84787928,0.00019178,2]
[375203543,1753584641543,-460.0,0.00019178,2]
[375203544,1753584641553,-460.0,0.00019178,2]
[375203545,1753584641562,-460.0,0.00019178,2]
[375203546,1753584641576,-461.2928467,0.00019178,2]
[375203547,1753584641585,-460.0,0.00019178,2]
[375203548,1753584641595,-460.0,0.00019178,2]
[375203549,1753584641604,-460.0,0.00019178,2]
[375203550,1753584641614,-460.0,0.00019178,2]
[375203551,1753584641624,-460.0,0.00019178,2]
[375203552,1753584641634,-460.0,0.00019178,2]
[375203553,1753584641644,-460.0,0.00019178,2]
[375203554,1753584641654,-460.0,0.00019178,2]
[375203555,1753584641664,-460.0,0.00019178,2]
[375203556,1753584641674,-439.89990516,0.00019178,2]
[375203557,1753584641683,-460.0,0.00019178,2]
[375203558,1753584641693,-467.8547618,0.00019178,2]
[375203559,1753584641713,-460.0,0.00019178,2]
[375203560,1753584641724,-460.0,0.00019178,2]
[375203561,1753584641734,-460.0,0.00019178,2]
[375203562,1753584641745,-462.78,0.00019178,2]
[375203563,1753584641755,-460.0,0.00019178,2]
[375203564,1753584641766,-460.0,0.00019178,2]
[375203565,1753584641778,-460.0,0.00019178,2]
[375203566,1753584641788,-462.47758632,0.00019178,2]
[375203567,1753584641798,-460.0,0.00019178,2]
[375203568,1753584641808,-460.0,0.00019178,2]
[375203569,1753584641818,-460.0,0.00019178,2]
[375203570,1753584641828,-461.01720859,0.00019178,2]
[375203571,1753584641839,-460.0,0.00019178,2]
[375203572,1753584641849,-460.0,0.00019178,2]
[375203573,1753584641859,-460.0,0.00019178,2]
[375203574,1753584641871,-460.0,0.00019178,2]
[375203575,1753584641880,-460.0,0.00019178,2]
[375203576,1753584641891,-461.81726263,0.00019178,2]
[375203577,1753584641901,-460.0,0.00019178,2]
[375203578,1753584641911,-460.0,0.00019178,2]
[375203579,1753584641920,-460.0,0.00019178,2]
[375203580,1753584641930,-467.68,0.00019178,2]
[375203581,1753584641940,-460.0,0.00019178,2]
[375203582,1753584641950,-460.0,0.00019178,2]
[375203583,1753584641960,-460.0,0.00019178,2]
[375203584,1753584641970,-460.0,0.00019178,2]
[375203585,1753584641980,-1855.52,0.00019178,2]
[375203586,1753584641990,-460.0,0.00019178,2]
[375203587,1753584642001,-460.0,0.00019178,2]
[375203588,1753584642011,-460.0,0.00019178,2]
[375203589,1753584642020,-462.59813265,0.00019178,2]
[375203590,1753584642031,-460.0,0.00019178,2]
[375203591,1753584642040,-460.0,0.00019178,2]
[375203592,1753584642050,-460.0,0.00019178,2]
[375203593,1753584642060,-216.13185331,0.00019178,2]
[375203594,1753584642070,-460.0,0.00019178,2]
[375203595,1753584642080,-460.0,0.00019178,2]
[375203596,1753584642090,-460.0,0.00019178,2]
[375203597,1753584642100,-470.30117033,0.00019178,2]
[375203598,1753584642110,-607.04797568,0.00019178,2]
[375203599,1753584642120,-286.93970212,0.00019178,2]
[375203600,1753584642130,-460.0,0.00019178,2]
[375203601,1753584642140,-460.0,0.00019178,2]
[375203602,1753584642150,-882.06,0.00019178,2]
[375203603,1753584642162,-460.0,0.00019178,2]
[375203604,1753584642178,-460.0,0.00019178,2]
[375203605,1753584642189,-460.0,0.00019178,2]
[375203606,1753584642199,-688.84,0.00019178,2]
[375203607,1753584642210,-460.0,0.00019178,2]
[375203608,1753584642223,-460.0,0.00019178,2]
[375203609,1753584642232,-460.0,0.00019178,2]
[375203610,1753584642242,-460.0,0.00019178,2]
[375203611,1753584642253,-460.0,0.00019178,2]
[375203612,1753584642263,-460.0,0.00019178,2]
[375203613,1753584642274,-460.0,0.00019178,2]
[375203614,1753584642284,-460.0,0.00019178,2]
[375203615,1753584642294,-467.25472251,0.00019178,2]
[375203616,1753584642304,-460.0,0.00019178,2]
[375203617,1753584642314,-460.0,0.00019178,2]
[375203618,1753584642323,-460.0,0.00019178,2]
[375203619,1753584642333,-460.0,0.00019178,2]
[375203620,1753584642343,-4238.22,0.00019178,2]
[375203621,1753584642352,-460.0,0.00019178,2]
[375203622,1753584642362,-461.18157853,0.00019178,2]
[375203623,1753584642372,-460.0,0.00019178,2]
[375203624,1753584642382,-460.0,0.00019178,2]
[375203625,1753584642392,-460.0,0.00019178,2]
[375203626,1753584642403,-465.04220486,0.00019178,2]
[375203627,1753584642414,-460.0,0.00019178,2]
[375203628,1753584642423,-460.0,0.00019178,2]
[375203629,1753584642434,-460.0,0.00019178,2]
[375203630,1753584642444,-461.37572795,0.00019178,2]
[375203631,1753584642453,-460.0,0.00019178,2]
[375203632,1753584642463,-460.0,0.00019178,2]
[375203633,1753584642472,-460.0,0.00019178,2]
[375203634,1753584642481,-460.0,0.00019178,2]
[375203635,1753584642491,-460.0,0.00019178,2]
[375203636,1753584642501,-606.22542611,0.00019178,2]
[375203637,1753584642511,-500.0,0.00019178,2]
[375203638,1753584642520,-460.0,0.00019178,2]
[375203639,1753584642530,-466.32375477,0.00019178,2]
[375203640,1753584642540,-460.0,0.00019178,2]
[375203641,1753584642549,-460.3759838,0.00019178,2]
[375203642,1753584642558,-460.0,0.00019178,2]
[375203643,1753584642569,-467.85927427,0.00019178,2]
[375203644,1753584642580,-460.0,0.00019178,2]
[375203645,1753584642589,-460.0,0.00019178,2]
[375203646,1753584642599,-460.0,0.00019178,2]
[375203647,1753584642609,-464.71695467,0.00019178,2]
[375203648,1753584642620,-460.0,0.00019178,2]
[375203649,1753584642630,-502.88494548,0.00019178,2]
[375203650,1753584642640,-460.0,0.00019178,2]
[375203651,1753584642650,-460.0,0.00019178,2]
[375203652,1753584642660,-460.0,0.00019178,2]
[375203653,1753584642669,-313.38948088,0.00019178,2]
[375203654,1753584642679,-460.0,0.00019178,2]
[375203655,1753584642688,-460.0,0.00019178,2]
[375203656,1753584642703,-460.0,0.00019178,2]
[375203657,1753584642713,-2826.79,0.00019178,2]
[375203658,1753584642725,-460.0,0.00019178,2]
[375203659,1753584642736,-460.0,0.00019178,2]
[375203660,1753584642747,-460.0,0.00019178,2]
[375203661,1753584642762,-1620.32,0.00019178,2]
[375203663,1753584642772,-460.0,0.00019178,2]
[375203664,1753584642781,-461.08295485,0.00019178,2]
[375203665,1753584642792,-480.38,0.00019178,2]
[375203666,1753584642803,-460.0,0.00019178,2]
[375203667,1753584642812,-463.67311162,0.00019178,2]
[375203668,1753584642823,-460.0,0.00019178,2]
[375203669,1753584642833,-460.0,0.00019178,2]
[375203670,1753584642843,-460.0,0.00019178,2]
[375203671,1753584642853,-2191.67,0.00019178,2]
[375203672,1753584642863,-460.0,0.00019178,2]
[375203673,1753584642873,-616.59,0.00019178,2]
[375203674,1753584642883,-500.0,0.00019178,2]
[375203675,1753584642894,-533.3,0.00019178,2]
[375203677,1753584642909,-460.0,0.00019178,2]
[375203679,1753584642920,-460.0,0.00019178,2]
[375203681,1753584642929,-460.89955931,0.00019178,2]
[375203682,1753584642939,-460.0,0.00019178,2]
[375203683,1753584642948,-1772.38,0.00019178,2]
[375203684,1753584642958,-1034.53,0.00019178,2]
[375203685,1753584642967,-460.0,0.00019178,2]
[375203686,1753584642978,-460.0,0.00019178,2]
[375203687,1753584642987,-460.0,0.00019178,2]
[375203688,1753584642998,-460.0,0.00019178,2]
[375203689,1753584643007,-460.0,0.00019178,2]
[375203690,1753584643017,-460.0,0.00019178,2]
[375203691,1753584643027,-460.0,0.00019178,2]
[375203692,1753584643037,-460.0,0.00019178,2]
[375203693,1753584643047,-460.0,0.00019178,2]
[375203694,1753584643056,-462.1966062,0.00019178,2]
[375203695,1753584643066,-460.0,0.00019178,2]
[375203696,1753584643076,-1110.96,0.00019178,2]
[375203698,1753584643086,-460.0,0.00019178,2]
[375203699,1753584643096,-460.0,0.00019178,2]
[375203700,1753584643106,-460.0,0.00019178,2]
[375203701,1753584643116,-460.0,0.00019178,2]
[375203702,1753584643126,-460.0,0.00019178,2]
[375203703,1753584643135,-460.0,0.00019178,2]
[375203704,1753584643145,-460.0,0.00019178,2]
[375203705,1753584643155,-2727.04,0.00019178,2]
[375203706,1753584643164,-460.0,0.00019178,2]
[375203707,1753584643173,-460.0,0.00019178,2]
[375203708,1753584643183,-460.0,0.00019178,2]
[375203709,1753584643193,-439.77191961,0.00019178,2]
[375203710,1753584643204,-460.0,0.00019178,2]
[375203711,1753584643214,-359.70626048,0.00019178,2]
[375203712,1753584643224,-460.08007497,0.00019178,2]
[375203713,1753584643236,-460.0,0.00019178,2]
[375203714,1753584643246,-460.0,0.00019178,2]
[375203715,1753584643256,-460.0,0.00019178,2]
[375203716,1753584643266,-1595.2,0.00019178,2]
[375203717,1753584643277,-460.0,0.00019178,2]
[375203718,1753584643287,-384.20676947,0.00019178,2]
[375203719,1753584643296,-460.0,0.00019178,2]
[375203720,1753584643308,-465.24789958,0.00019178,2]
[375203721,1753584643320,-460.0,0.00019178,2]
[375203722,1753584643330,-463.1940188,0.00019178,2]
[375203723,1753584643340,-460.0,0.00019178,2]
[375203724,1753584643352,-460.0,0.00019178,2]
[375203725,1753584643363,-460.0,0.00019178,2]
[375203726,1753584643373,-565.04,0.00019178,2]
[375203727,1753584643383,-460.0,0.00019178,2]
[375203728,1753584643393,-575.96,0.00019178,2]
[375203729,1753584643403,-460.0,0.00019178,2]
[375203730,1753584643413,-828.54,0.00019178,2]
[375203731,1753584643423,-461.06038865,0.00019178,2]
[375203732,1753584643435,-464.04037874,0.00019178,2]
[375203733,1753584643444,-460.0,0.00019178,2]